Workbook

Sheet Náklady na prestavbu kúpeľne
B1: HÁROK S NÁKLADMI NA PRESTAVBU KÚPEĽNE
B2: POZNÁMKA: V stĺpcoch Rozdiel v tabuľke sa zobrazuje, či skutočné náklady prekročili odhadované náklady. Červené čísla označujú prekročenie (záporná hodnota) a čierne čísla označujú nižšie skutočné náklady oproti odhadovaným (kladná hodnota).
E3: Jednotkové náklady (EUR) | H3: Celkové náklady (EUR)
B4: Typ položky | C4: Položka | D4: Množstvo | E4: Odhadované | F4: Skutočné | G4: Rozdiel | H4: Odhadované | I4: Skutočné | J4: Rozdiel
B5: Vaňa/sprcha | C5: Vaňa, liatinová, štandard | D5: 1 | E5: 250.00 EUR | F5: =RANDBETWEEN(E5+2,E5+20) -> 262.00 EUR | G5: =IFERROR(Náklady[[#This Row],[Odhadované]]-Náklady[[#This Row],[Skutočné]], "") -> -12.00 EUR | H5: =IFERROR(Náklady[[#This Row],[Množstvo]]*Náklady[[#This Row],[Odhadované]], "") -> 250.00 EUR | I5: =IFERROR(Náklady[[#This Row],[Množstvo]]*Náklady[[#This Row],[Skutočné]], "") -> 262.00 EUR | J5: =IFERROR(Náklady[[#This Row],[Odhadované ]]-Náklady[[#This Row],[Skutočné ]], "") -> -12.00 EUR
B6: Vaňa/sprcha | C6: Sprchové dvere, pántové, štandard | D6: 1 | E6: 200.00 EUR | F6: 220.00 EUR | G6: =IFERROR(Náklady[[#This Row],[Odhadované]]-Náklady[[#This Row],[Skutočné]], "") -> -20.00 EUR | H6: =IFERROR(Náklady[[#This Row],[Množstvo]]*Náklady[[#This Row],[Odhadované]], "") -> 200.00 EUR | I6: =IFERROR(Náklady[[#This Row],[Množstvo]]*Náklady[[#This Row],[Skutočné]], "") -> 220.00 EUR | J6: =IFERROR(Náklady[[#This Row],[Odhadované ]]-Náklady[[#This Row],[Skutočné ]], "") -> -20.00 EUR
B7: Vaňa/sprcha | C7: Sprchová hlavica, štandard | D7: 1 | E7: 50.00 EUR | F7: 59.00 EUR | G7: =IFERROR(Náklady[[#This Row],[Odhadované]]-Náklady[[#This Row],[Skutočné]], "") -> -9.00 EUR | H7: =IFERROR(Náklady[[#This Row],[Množstvo]]*Náklady[[#This Row],[Odhadované]], "") -> 50.00 EUR | I7: =IFERROR(Náklady[[#This Row],[Množstvo]]*Náklady[[#This Row],[Skutočné]], "") -> 59.00 EUR | J7: =IFERROR(Náklady[[#This Row],[Odhadované ]]-Náklady[[#This Row],[Skutočné ]], "") -> -9.00 EUR
B8: Vaňa/sprcha | C8: Vaňová zástena, štandard | D8: 1 | E8: 200.00 EUR | F8: 209.00 EUR | G8: =IFERROR(Náklady[[#This Row],[Odhadované]]-Náklady[[#This Row],[Skutočné]], "") -> -9.00 EUR | H8: =IFERROR(Náklady[[#This Row],[Množstvo]]*Náklady[[#This Row],[Odhadované]], "") -> 200.00 EUR | I8: =IFERROR(Náklady[[#This Row],[Množstvo]]*Náklady[[#This Row],[Skutočné]], "") -> 209.00 EUR | J8: =IFERROR(Náklady[[#This Row],[Odhadované ]]-Náklady[[#This Row],[Skutočné ]], "") -> -9.00 EUR
B9: Skrinky | C9: Lieková skrinka, deluxe | D9: 1 | E9: 200.00 EUR | F9: 215.00 EUR | G9: =IFERROR(Náklady[[#This Row],[Odhadované]]-Náklady[[#This Row],[Skutočné]], "") -> -15.00 EUR | H9: =IFERROR(Náklady[[#This Row],[Množstvo]]*Náklady[[#This Row],[Odhadované]], "") -> 200.00 EUR | I9: =IFERROR(Náklady[[#This Row],[Množstvo]]*Náklady[[#This Row],[Skutočné]], "") -> 215.00 EUR | J9: =IFERROR(Náklady[[#This Row],[Odhadované ]]-Náklady[[#This Row],[Skutočné ]], "") -> -15.00 EUR
B10: Skrinky | C10: Modulárna toaletná skrinka, štandard | D10: 2 | E10: 100.00 EUR | F10: 112.00 EUR | G10: =IFERROR(Náklady[[#This Row],[Odhadované]]-Náklady[[#This Row],[Skutočné]], "") -> -12.00 EUR | H10: =IFERROR(Náklady[[#This Row],[Množstvo]]*Náklady[[#This Row],[Odhadované]], "") -> 200.00 EUR | I10: =IFERROR(Náklady[[#This Row],[Množstvo]]*Náklady[[#This Row],[Skutočné]], "") -> 224.00 EUR | J10: =IFERROR(Náklady[[#This Row],[Odhadované ]]-Náklady[[#This Row],[Skutočné ]], "") -> -24.00 EUR
B11: Pultové dosky | C11: Keramické dlaždice, deluxe (množstvo v metroch) | D11: 5 | E11: 22.50 EUR | F11: 29.00 EUR | G11: =IFERROR(Náklady[[#This Row],[Odhadované]]-Náklady[[#This Row],[Skutočné]], "") -> -6.50 EUR | H11: =IFERROR(Náklady[[#This Row],[Množstvo]]*Náklady[[#This Row],[Odhadované]], "") -> 112.50 EUR | I11: =IFERROR(Náklady[[#This Row],[Množstvo]]*Náklady[[#This Row],[Skutočné]], "") -> 145.00 EUR | J11: =IFERROR(Náklady[[#This Row],[Odhadované ]]-Náklady[[#This Row],[Skutočné ]], "") -> -32.50 EUR
B12: Batérie | C12: Batéria, vaňová, štandard | D12: 1 | E12: 90.00 EUR | F12: 108.00 EUR | G12: =IFERROR(Náklady[[#This Row],[Odhadované]]-Náklady[[#This Row],[Skutočné]], "") -> -18.00 EUR | H12: =IFERROR(Náklady[[#This Row],[Množstvo]]*Náklady[[#This Row],[Odhadované]], "") -> 90.00 EUR | I12: =IFERROR(Náklady[[#This Row],[Množstvo]]*Náklady[[#This Row],[Skutočné]], "") -> 108.00 EUR | J12: =IFERROR(Náklady[[#This Row],[Odhadované ]]-Náklady[[#This Row],[Skutočné ]], "") -> -18.00 EUR
B13: Batérie | C13: Batéria, sprchová, jedna páka, štandard | D13: 1 | E13: 115.00 EUR | F13: 135.00 EUR | G13: =IFERROR(Náklady[[#This Row],[Odhadované]]-Náklady[[#This Row],[Skutočné]], "") -> -20.00 EUR | H13: =IFERROR(Náklady[[#This Row],[Množstvo]]*Náklady[[#This Row],[Odhadované]], "") -> 115.00 EUR | I13: =IFERROR(Náklady[[#This Row],[Množstvo]]*Náklady[[#This Row],[Skutočné]], "") -> 135.00 EUR | J13: =IFERROR(Náklady[[#This Row],[Odhadované ]]-Náklady[[#This Row],[Skutočné ]], "") -> -20.00 EUR
B14: Batérie | C14: Batéria, umývadlová, štandard | D14: 1 | E14: 95.00 EUR | F14: 114.00 EUR | G14: =IFERROR(Náklady[[#This Row],[Odhadované]]-Náklady[[#This Row],[Skutočné]], "") -> -19.00 EUR | H14: =IFERROR(Náklady[[#This Row],[Množstvo]]*Náklady[[#This Row],[Odhadované]], "") -> 95.00 EUR | I14: =IFERROR(Náklady[[#This Row],[Množstvo]]*Náklady[[#This Row],[Skutočné]], "") -> 114.00 EUR | J14: =IFERROR(Náklady[[#This Row],[Odhadované ]]-Náklady[[#This Row],[Skutočné ]], "") -> -19.00 EUR
B15: Podlaha | C15: Keramické dlaždice, štandard (množstvo v metroch štvorcových) | D15: 35 | E15: 12.00 EUR | F15: 26.00 EUR | G15: =IFERROR(Náklady[[#This Row],[Odhadované]]-Náklady[[#This Row],[Skutočné]], "") -> -14.00 EUR | H15: =IFERROR(Náklady[[#This Row],[Množstvo]]*Náklady[[#This Row],[Odhadované]], "") -> 420.00 EUR | I15: =IFERROR(Náklady[[#This Row],[Množstvo]]*Náklady[[#This Row],[Skutočné]], "") -> 910.00 EUR | J15: =IFERROR(Náklady[[#This Row],[Odhadované ]]-Náklady[[#This Row],[Skutočné ]], "") -> -490.00 EUR
B16: Kovové vybavenie | C16: Držiak na uteráky, štandard | D16: 2 | E16: 15.00 EUR | F16: 32.00 EUR | G16: =IFERROR(Náklady[[#This Row],[Odhadované]]-Náklady[[#This Row],[Skutočné]], "") -> -17.00 EUR | H16: =IFERROR(Náklady[[#This Row],[Množstvo]]*Náklady[[#This Row],[Odhadované]], "") -> 30.00 EUR | I16: =IFERROR(Náklady[[#This Row],[Množstvo]]*Náklady[[#This Row],[Skutočné]], "") -> 64.00 EUR | J16: =IFERROR(Náklady[[#This Row],[Odhadované ]]-Náklady[[#This Row],[Skutočné ]], "") -> -34.00 EUR
B17: Kovové vybavenie | C17: Držiak na toaletný papier | D17: 1 | E17: 10.00 EUR | F17: 26.00 EUR | G17: =IFERROR(Náklady[[#This Row],[Odhadované]]-Náklady[[#This Row],[Skutočné]], "") -> -16.00 EUR | H17: =IFERROR(Náklady[[#This Row],[Množstvo]]*Náklady[[#This Row],[Odhadované]], "") -> 10.00 EUR | I17: =IFERROR(Náklady[[#This Row],[Množstvo]]*Náklady[[#This Row],[Skutočné]], "") -> 26.00 EUR | J17: =IFERROR(Náklady[[#This Row],[Odhadované ]]-Náklady[[#This Row],[Skutočné ]], "") -> -16.00 EUR
B18: Osvetlenie | C18: Vstavané osvetlenie, štandard | D18: 4 | E18: 25.00 EUR | F18: 41.00 EUR | G18: =IFERROR(Náklady[[#This Row],[Odhadované]]-Náklady[[#This Row],[Skutočné]], "") -> -16.00 EUR | H18: =IFERROR(Náklady[[#This Row],[Množstvo]]*Náklady[[#This Row],[Odhadované]], "") -> 100.00 EUR | I18: =IFERROR(Náklady[[#This Row],[Množstvo]]*Náklady[[#This Row],[Skutočné]], "") -> 164.00 EUR | J18: =IFERROR(Náklady[[#This Row],[Odhadované ]]-Náklady[[#This Row],[Skutočné ]], "") -> -64.00 EUR
B19: Umývadlá | C19: Umývadlo, štandard | D19: 2 | E19: 60.00 EUR | F19: 64.00 EUR | G19: =IFERROR(Náklady[[#This Row],[Odhadované]]-Náklady[[#This Row],[Skutočné]], "") -> -4.00 EUR | H19: =IFERROR(Náklady[[#This Row],[Množstvo]]*Náklady[[#This Row],[Odhadované]], "") -> 120.00 EUR | I19: =IFERROR(Náklady[[#This Row],[Množstvo]]*Náklady[[#This Row],[Skutočné]], "") -> 128.00 EUR | J19: =IFERROR(Náklady[[#This Row],[Odhadované ]]-Náklady[[#This Row],[Skutočné ]], "") -> -8.00 EUR
B20: Iné | D20: 1 | E20: 20.00 EUR | F20: 25.00 EUR | G20: =IFERROR(Náklady[[#This Row],[Odhadované]]-Náklady[[#This Row],[Skutočné]], "") -> -5.00 EUR | H20: =IFERROR(Náklady[[#This Row],[Množstvo]]*Náklady[[#This Row],[Odhadované]], "") -> 20.00 EUR | I20: =IFERROR(Náklady[[#This Row],[Množstvo]]*Náklady[[#This Row],[Skutočné]], "") -> 25.00 EUR | J20: =IFERROR(Náklady[[#This Row],[Odhadované ]]-Náklady[[#This Row],[Skutočné ]], "") -> -5.00 EUR
B21: Medzisúčet | E21: =SUBTOTAL(109,Náklady[Odhadované]) -> 1,464.50 EUR | F21: =SUBTOTAL(109,Náklady[Skutočné]) -> 1,677.00 EUR | G21: =SUBTOTAL(109,Náklady[Rozdiel]) -> -212.50 EUR | H21: =SUBTOTAL(109,Náklady[[Odhadované ]]) -> 2,212.50 EUR | I21: =SUBTOTAL(109,Náklady[[Skutočné ]]) -> 3,008.00 EUR | J21: =SUBTOTAL(109,Náklady[[Rozdiel ]]) -> -795.50 EUR
B22: Neočakávané náklady – (plus 30 % z odhadovaných) | E22: =IFERROR(Náklady[[#Totals],[Odhadované]]*0.3, "") -> 439.35 EUR | H22: =IFERROR(Náklady[[#Totals],[Odhadované ]]*0.3, "") -> 663.75 EUR
B23: Celkové náklady | E23: =IFERROR(SUM(E21:E21), "") -> 1,464.50 EUR | H23: =IFERROR(SUM(Náklady[[#Totals],[Odhadované ]],Prebytok), "") -> 2,876.25 EUR
